bitfinex-derivatives/quotes_ETHF0:USTF0_20251006
["timestamp","ask_amount","ask_price","bid_price","bid_amount"]
[1759792124003,0.7457,4691.9,4691.8,0.7323]
[1759792124306,0.59801,4691.6,4691.5,1.0699]
[1759792128007,1.12921,4691.6,4691.5,0.2025]
[1759792128209,1.12921,4691.6,4691.5,0.7069]
[1759792128709,1.12921,4691.6,4691.5,0.8272]
[1759792131814,1.12333,4691.3,4691.2,0.71610872]
[1759792132014,1.12333,4691.3,4691.2,1.31264872]
[1759792132201,0.59893,4691.3,4691.2,1.31264872]
[1759792133514,0.3835,4691.7,4691.6,0.38351]
[1759792133713,0.90886,4692.2,4692.1,0.7144]
[1759792134118,1.12326,4692.2,4692.1,0.7144]
[1759792135404,1.12326,4692.2,4692.1,0.3025]
[1759792135613,0.51637,4692.0,4691.9,0.213]
[1759792136223,0.94617,4692.0,4691.9,0.213]
[1759792136523,1.25617,4692.0,4691.9,0.213]
[1759792140325,1.25617,4692.0,4691.9,0.423]
[1759792140527,1.25617,4692.0,4691.9,0.7255]
[1759792141126,1.25617,4692.0,4691.9,0.213]
[1759792141722,0.7398,4691.3,4691.2,0.51420872]
[1759792141921,1.12333,4691.3,4691.2,0.72720872]
[1759792142327,1.12333,4691.3,4691.2,1.11074872]
[1759792142518,1.08249,4692.5,4691.9,0.2019]
[1759792142717,0.5254,4692.0,4691.9,0.7144]
[1759792143427,0.2154,4692.0,4691.9,0.7144]
[1759792144121,1.08249,4692.5,4692.4,0.4119]
[1759792144122,0.2154,4692.5,4692.4,0.4119]
[1759792144324,1.60463002,4692.5,4692.4,0.7144]
[1759792144522,0.95863,4692.3,4692.0,0.21]
[1759792144827,1.12327,4692.1,4692.0,0.21]
[1759792145027,1.12327,4692.1,4692.0,0.7144]
[1759792145227,1.12327,4692.1,4692.0,0.8347]
[1759792146529,1.12327,4692.1,4692.0,0.7144]
[1759792147430,1.12327,4692.1,4692.0,1.21817]
[1759792147626,0.4298,4692.1,4692.0,1.21817]
[1759792147831,0.38346,4692.2,4692.1,1.09787]
[1759792148331,1.12322,4692.7,4692.6,0.7144]
[1759792152235,0.38344,4692.4,4692.3,0.3025]
[1759792152534,1.12324,4692.4,4692.3,0.7255]
[1759792153629,0.2154,4691.9,4691.8,0.59349]
[1759792153939,0.7398,4691.9,4691.8,1.31089]
[1759792154633,0.4298,4691.9,4691.8,1.31089]
[1759792155329,0.81328,4691.9,4691.8,1.31089]
[1759792158938,1.12588,4691.9,4691.8,1.31089]
[1759792159436,0.3126,4692.5,4692.3,0.38345]
[1759792159630,0.58399,4693.1,4693.0,0.3356]
[1759792159840,1.58689173,4693.1,4693.0,0.9692]
[1759792160035,1.10519,4693.1,4693.0,0.9692]
[1759792160238,1.10519,4693.1,4693.0,1.0972]
[1759792160537,1.10518,4693.1,4693.0,0.213]
[1759792160738,1.10518,4693.1,4693.0,0.753]
[1759792162439,1.10518,4693.1,4693.0,0.9692]
[1759792165334,1.10518,4693.1,4693.0,1.0972]
[1759792168636,0.58398,4693.1,4693.0,1.0972]
[1759792169645,1.10518,4693.1,4693.0,1.0972]
[1759792170346,1.10518,4693.1,4693.0,0.753]
[1759792170546,0.38346,4692.3,4692.2,0.2076]
[1759792170743,1.10526,4692.3,4692.2,0.5454]
[1759792170944,1.10526,4692.3,4692.2,0.753]
[1759792171142,1.10526,4692.3,4692.2,0.9692]
[1759792171347,0.79266,4692.3,4692.2,0.9692]
[1759792171549,0.58406,4692.3,4692.2,0.9692]
[1759792171748,0.89666,4692.3,4692.2,0.9692]
[1759792172250,1.10526,4692.3,4692.2,0.9692]
[1759792173147,0.2006,4692.3,4692.2,0.9692]
[1759792173444,0.58403,4692.6,4692.5,0.8842]
[1759792173943,0.89663,4692.6,4692.5,0.8842]
[1759792174342,0.5132,4692.6,4692.5,0.8842]
[1759792174543,0.38342,4692.6,4692.5,0.8842]
[1759792176839,0.3126,4693.1,4692.5,0.8842]
[1759792176840,0.38341,4692.8,4692.5,1.26763]
[1759792177041,0.60442,4692.7,4692.6,1.12072]
[1759792177245,0.60442,4692.7,4692.6,1.33372]
[1759792177445,0.60442,4692.7,4692.6,0.9503]
[1759792180944,0.38341,4692.8,4692.7,0.38342]
[1759792181243,0.3124,4693.1,4693.0,1.25039]
[1759792181244,0.38338,4693.1,4693.0,1.25039]
[1759792181853,0.38491412,4693.4,4693.3,0.7373]
[1759792182156,0.38491412,4693.4,4693.3,0.9503]
[1759792183042,0.00155412,4693.4,4693.3,0.9503]
[1759792183647,1.12398,4694.4,4694.3,0.7373]
[1759792184854,1.12665802,4694.4,4694.3,0.7373]
[1759792185454,0.38595802,4694.4,4694.3,0.7373]
[1759792185753,0.91935802,4694.4,4694.3,0.7373]
[1759792186255,1.12665802,4694.4,4694.3,0.7373]
[1759792187350,1.12665802,4694.4,4693.5,0.1297]
[1759792187351,0.74337802,4694.4,4693.9,0.3225]
[1759792187548,1.12404,4693.6,4693.5,0.5355]
[1759792187750,1.12404,4693.6,4693.5,0.213]
[1759792191862,0.38338,4693.2,4693.1,0.3295]
[1759792192055,1.10768,4693.2,4693.1,0.5377]
[1759792192257,0.38334,4693.6,4693.5,0.8877]
[1759792192459,0.38334,4693.6,4693.5,1.1007]
[1759792192758,0.59074,4693.6,4693.5,1.1007]
[1759792193858,1.10764,4693.6,4693.5,1.1007]
[1759792194058,1.10764,4693.6,4693.5,0.971]
[1759792196355,1.10764,4693.6,4693.5,1.1007]
[1759792196657,0.38334,4693.7,4693.5,1.1007]
[1759792196857,0.38334,4693.7,4693.6,0.758]
[1759792198651,0.59074,4693.7,4693.6,0.758]
[1759792199153,0.89604,4693.7,4693.6,0.758]
[1759792200457,1.10764,4693.7,4693.6,0.758]
[1759792202557,0.38333,4693.8,4693.7,1.14133]
[1759792202752,0.38333,4693.8,4693.7,0.758]
[1759792204362,0.59073,4693.8,4693.7,0.758]
[1759792205352,0.38333,4693.8,4693.7,0.758]
[1759792205749,0.51537802,4694.4,4694.3,0.2082]
[1759792206061,0.38595802,4694.4,4694.3,0.971]
[1759792206362,0.00267802,4694.4,4694.3,0.971]
[1759792206954,0.21007802,4694.4,4694.3,0.971]
[1759792210062,1.10762,4693.9,4693.8,0.758]
[1759792210255,1.10762,4693.9,4693.8,0.971]
[1759792211355,0.59072,4693.9,4693.8,0.971]
[1759792211964,0.38332,4693.9,4693.8,0.971]
[1759792212556,0.38331,4694.0,4693.9,1.14132]
[1759792212953,0.00267802,4694.4,4693.8,0.213]
[1759792212954,0.38595802,4694.4,4694.1,0.758]
[1759792213162,0.38595802,4694.4,4694.3,1.14129]
[1759792213354,0.38595802,4694.4,4694.3,0.758]
[1759792215965,0.38595802,4694.4,4694.3,1.14129]
[1759792217069,0.38595802,4694.4,4694.3,0.758]
[1759792220464,0.38595802,4694.4,4694.3,1.14129]
[1759792221170,0.38595802,4694.4,4694.3,0.758]
[1759792222371,0.38595802,4694.4,4694.3,1.14129]
[1759792222770,0.00267802,4694.4,4694.3,0.758]
[1759792222976,0.38595802,4694.4,4694.3,1.14129]
[1759792223672,1.14755802,4694.4,4694.3,0.758]
[1759792223965,1.14755802,4694.4,4693.5,0.3034]
[1759792223966,0.7616,4693.6,4693.5,0.3034]
[1759792224269,0.3248,4694.0,4693.5,1.0611]
[1759792224471,0.60134,4693.7,4693.6,0.7221]
[1759792224664,1.14494,4693.7,4693.6,0.9351]
[1759792224865,1.14494,4693.7,4693.2,0.2047]
[1759792224866,0.95841,4693.4,4693.2,0.2047]
[1759792225060,1.14497,4693.3,4693.2,0.5081]
[1759792225267,1.14501,4692.8,4692.7,0.7221]
[1759792225565,1.14501,4692.8,4692.7,0.9351]
[1759792225767,0.82021,4692.8,4692.7,0.9351]
[1759792227167,1.14501,4692.8,4692.7,0.9351]
[1759792228170,0.82021,4692.8,4692.7,0.9351]
[1759792228375,1.14501,4692.8,4692.7,0.9351]
[1759792230568,1.14501,4692.8,4692.7,0.7211]
[1759792230769,1.14501,4692.8,4692.7,0.213]
[1759792231774,1.14507,4692.1,4692.0,0.7221]
[1759792231975,1.14507,4692.1,4692.0,0.9351]
[1759792232876,0.60147,4692.1,4692.0,1.0611]
[1759792233078,1.14507,4692.1,4692.0,1.0611]
[1759792233280,1.14507,4692.1,4692.0,0.9351]
[1759792235282,0.38347,4692.1,4692.0,1.0611]
[1759792235678,0.38345,4692.3,4692.1,0.38347]
[1759792235883,0.38345,4692.3,4692.1,1.10557]
[1759792236084,0.60145,4692.3,4692.2,0.7221]
[1759792236288,1.13195,4692.3,4692.2,0.7221]
[1759792238676,0.58372,4692.7,4692.6,0.7535]
[1759792238882,0.58372,4692.7,4692.6,0.9665]
[1759792239081,1.11422,4692.7,4692.6,0.9665]
[1759792239885,0.38342,4692.7,4692.6,0.9665]
[1759792240187,1.11421,4692.8,4692.7,1.13692]
[1759792240583,0.38343,4692.6,4692.0,0.126]
[1759792240781,0.7308,4692.6,4692.5,1.13693]
[1759792240984,1.11422,4692.6,4692.5,1.13693]
[1759792242290,1.11422,4692.6,4692.5,1.26643]
[1759792242291,0.2003,4692.6,4692.5,1.26643]
[1759792243892,0.2003,4692.9,4692.8,0.4297]
[1759792244190,0.3834,4692.9,4692.8,1.34991]
[1759792244378,0.5837,4692.9,4692.8,1.34991]
[1759792244585,0.8936,4692.9,4692.8,1.34991]
[1759792245396,0.8936,4692.9,4692.8,0.9665]
[1759792245690,0.8936,4692.9,4692.8,1.34991]
[1759792247196,0.5837,4692.9,4692.8,1.34991]
[1759792247790,0.38339,4693.0,4692.9,0.59549]
[1759792247996,0.38339,4693.0,4692.9,1.13689]
[1759792248195,0.2997,4693.6,4693.1,0.81358]
[1759792248395,1.11514,4693.6,4693.5,0.7301]
[1759792248797,1.11514,4693.6,4693.5,0.5204]
[1759792250089,0.2118,4693.6,4693.5,0.8606]
[1759792250290,0.59514,4693.6,4693.5,0.8606]
[1759792250490,0.89484,4693.6,4693.5,0.8606]
[1759792253297,0.59514,4693.6,4693.5,1.24395]
[1759792254091,0.59514,4693.6,4693.5,0.8606]
[1759792254498,0.38334,4693.6,4693.5,1.24395]
[1759792255097,1.11514,4693.6,4693.5,1.24395]
[1759792255297,1.11514,4693.6,4693.5,0.8606]
[1759792256296,1.11514,4693.6,4693.5,1.24395]
[1759792256597,0.81544,4693.6,4693.5,1.24395]
[1759792256798,0.4321,4693.6,4693.5,1.24395]
[1759792256997,0.81544,4693.6,4693.5,1.24395]
[1759792257495,0.4321,4693.6,4693.5,1.24395]
[1759792257696,0.59514,4693.6,4693.5,1.24395]
[1759792258093,0.2118,4693.9,4693.7,0.5096]
[1759792258298,0.38331,4694.0,4693.9,0.7301]
[1759792258497,0.38331,4694.0,4693.9,0.9431]
[1759792258901,0.59511,4694.0,4693.9,0.9431]
[1759792260798,1.11511,4694.0,4693.9,0.9431]
[1759792264904,1.11511,4694.0,4693.9,1.32642]
[1759792265203,0.00267802,4694.4,4694.3,1.11339]
[1759792265505,0.38595802,4694.4,4694.3,1.11339]
[1759792266201,0.00267802,4694.4,4694.3,1.11339]
[1759792267005,0.38595802,4694.4,4694.3,1.11339]
[1759792267603,0.00267802,4694.4,4694.3,1.11339]
[1759792271099,0.38322,4695.1,4695.0,0.5607]
[1759792271301,0.89472,4695.1,4695.0,1.0736]
[1759792271705,1.11502,4695.1,4695.0,1.0736]
[1759792272107,1.11678472,4695.1,4695.0,1.07533412]
[1759792275304,0.38498472,4695.1,4695.0,1.45856412]
[1759792277606,0.00176472,4695.1,4695.0,1.45856412]
[1759792278810,0.38498472,4695.1,4695.0,1.45856412]
[1759792279009,0.00176472,4695.1,4695.0,1.45856412]
[1759792280513,0.38314,4696.1,4696.0,0.559]
[1759792280713,0.38314,4696.1,4696.0,1.1042]
[1759792281212,0.59164,4696.1,4696.0,1.1042]
[1759792281409,0.00166728,4696.1,4696.0,1.1042]
[1759792281815,0.72456728,4696.1,4696.0,1.1042]
[1759792285118,0.40986728,4696.1,4696.0,1.1042]
[1759792285822,0.21016728,4696.1,4696.0,1.1042]
[1759792287414,0.00166728,4696.1,4696.0,1.1042]
[1759792287614,0.3831,4696.6,4696.5,0.6794]
[1759792287922,0.90625,4697.2,4697.1,0.4261]
[1759792288123,0.38304,4697.3,4697.1,1.35436]
[1759792288324,0.5232,4697.5,4697.4,0.7583]
[1759792288526,0.90778187,4697.5,4697.4,0.7583]
[1759792289221,1.10748187,4697.5,4697.4,0.7583]
[1759792289528,1.10595,4697.2,4697.1,0.7595]
[1759792290323,1.10595,4697.2,4697.1,0.9713]
[1759792290521,1.10597,4696.9,4696.8,0.5465]
[1759792290725,1.10597,4696.9,4696.8,0.9713]
[1759792291121,0.79127,4696.9,4696.8,0.9713]
[1759792291622,0.2085,4696.9,4696.8,0.9713]
[1759792292227,0.38307,4697.0,4696.8,1.02218]
[1759792292428,0.38306,4697.2,4697.1,0.7583]
[1759792293926,1.10596,4697.2,4697.1,0.7583]
[1759792301228,1.10596,4697.2,4697.1,0.5465]
[1759792301426,0.81267,4697.0,4696.9,0.5235]
[1759792301626,1.12707,4697.0,4696.9,0.7365]
[1759792302530,0.59187,4697.0,4696.9,0.9438]
[1759792302723,0.90627,4697.0,4696.9,0.9438]
[1759792308346,1.12707,4697.0,4696.9,0.9438]
[1759792309842,1.12707,4697.0,4696.1,1.52866737]
[1759792309843,0.2143,4696.2,4696.1,1.52866737]
[1759792310035,0.38318,4695.6,4695.5,1.74216737]
[1759792310241,1.12028,4695.6,4695.5,0.6381]
[1759792310440,0.79862,4695.1,4695.0,0.87903412]
[1759792310640,1.12032,4695.1,4695.0,0.96673412]
[1759792311043,1.12032,4695.1,4695.0,1.09633412]
[1759792311745,0.2143,4695.1,4695.0,1.09633412]
[1759792312047,0.38321,4695.2,4695.1,0.752]
[1759792312642,0.2143,4695.9,4695.6,0.3269]
[1759792312848,1.12017,4696.9,4696.8,0.752]
[1759792313046,0.79847,4696.9,4696.8,0.965]
[1759792313556,1.12017,4696.9,4696.8,0.965]
[1759792316849,1.12017,4696.9,4696.8,0.213]
[1759792317049,1.12017,4696.9,4696.0,0.2135]
[1759792317050,1.12024,4696.1,4696.0,0.2135]
[1759792317343,0.70482,4696.4,4696.0,1.15084]
[1759792317547,0.59742,4696.3,4696.2,0.4251]
[1759792317750,0.38309,4696.7,4696.2,0.752]
[1759792317945,0.38309,4696.7,4696.6,0.752]
[1759792318145,0.59739,4696.7,4696.6,0.965]
[1759792318347,1.12019,4696.7,4696.6,0.965]
[1759792319952,0.79849,4696.7,4696.6,0.965]
[1759792320455,1.12019,4696.7,4696.6,0.965]
[1759792321162,1.12019,4696.7,4696.6,1.3481]
[1759792321351,0.79849,4696.7,4696.6,0.965]
[1759792321550,1.12019,4696.7,4696.6,0.965]
[1759792321956,0.2143,4696.7,4696.6,0.965]
[1759792322250,0.59738,4696.9,4696.8,0.752]
[1759792322652,1.12018,4696.9,4696.8,0.7534]
[1759792322856,1.12018,4696.9,4696.8,0.965]
[1759792328262,1.12018,4696.9,4696.8,0.213]
[1759792328460,1.12018,4696.9,4696.8,0.7534]
[1759792332769,1.12018,4696.9,4696.8,0.213]
[1759792335964,1.12024,4696.1,4696.0,2.06906737]
[1759792336269,1.12024,4696.1,4696.0,0.4265]
[1759792337263,1.12024,4696.1,4696.0,0.213]
[1759792337466,1.12028,4695.6,4695.5,0.5404]
[1759792337769,1.12028,4695.6,4695.5,0.7534]
[1759792339072,0.95779,4696.4,4696.2,0.4057]
[1759792339073,0.38311,4696.4,4696.2,0.4057]
[1759792339264,0.95765,4697.2,4696.3,1.00182]
[1759792339464,0.38311,4696.5,4696.3,1.00182]
[1759792339664,0.60331,4696.5,4696.4,0.7166]
[1759792339861,0.3061,4696.8,4696.6,0.2009]
[1759792339862,0.6033,4696.7,4696.6,0.2009]
[1759792340060,0.6033,4696.7,4696.6,0.7166]
[1759792340266,1.1269,4696.7,4696.6,0.7166]
[1759792347584,0.38312,4696.3,4696.2,1.52739093]
[1759792347777,0.50355,4696.0,4695.9,1.52739093]
[1759792347976,1.12697,4695.7,4695.6,1.52739093]
[1759792348181,1.12697,4695.7,4695.6,1.74039093]
[1759792348376,1.12697,4695.7,4695.6,0.4139]
[1759792348580,1.12697,4695.7,4695.6,0.7248]
[1759792348976,1.12697,4695.7,4695.6,0.213]
[1759792353574,1.12697,4695.7,4695.6,0.9296]
[1759792353575,0.2202,4695.7,4695.6,0.9296]
[1759792353780,0.3061,4696.4,4695.9,0.4057]
[1759792354086,0.90942,4696.4,4696.3,0.7166]
[1759792354290,1.12692,4696.4,4696.3,0.7166]
[1759792356490,0.744,4695.8,4695.7,1.12257]
[1759792356688,0.744,4695.8,4695.7,1.33557]
[1759792358588,0.4173,4695.8,4695.7,1.33557]
[1759792359890,0.744,4695.8,4695.7,1.33557]
[1759792360789,0.4173,4695.8,4695.7,1.33557]
[1759792360990,0.2169,4695.8,4695.7,1.33557]
[1759792362891,0.3267,4696.6,4696.0,0.92965]
[1759792363086,0.744,4696.1,4696.0,0.80185]
[1759792363285,1.12714,4696.1,4696.0,0.81105]
[1759792363487,0.744,4696.1,4696.0,1.13175]
[1759792363687,0.744,4696.1,4696.0,1.33555]
[1759792363889,0.744,4696.1,4696.0,1.46335]
[1759792364085,1.12714,4696.1,4696.0,1.33555]
[1759792364290,1.12714,4696.1,4696.0,0.9524]
[1759792364492,1.12714,4696.1,4696.0,1.12255]
[1759792364690,1.12714,4696.1,4696.0,1.33555]
[1759792369098,0.1204,4698.0,4696.5,0.1315]
[1759792369099,0.38307,4696.9,4696.5,0.1315]
[1759792369298,1.12717,4697.0,4696.9,0.4367]
[1759792369502,1.12717,4697.0,4696.9,0.7577]
[1759792371002,0.91208187,4697.5,4697.4,0.4367]
[1759792371299,1.12868187,4697.5,4697.4,0.9707]
[1759792377407,1.12868187,4697.5,4697.4,1.35373]
[1759792380520,1.12868187,4697.5,4697.4,0.9707]
[1759792380910,0.42126187,4697.5,4697.4,1.35373]
[1759792381116,0.20466187,4697.5,4697.4,1.35373]
[1759792381524,0.00156187,4697.5,4697.4,1.35373]
[1759792382523,0.38458187,4697.5,4697.4,1.35373]
[1759792384219,0.00156187,4697.5,4697.4,1.35373]
[1759792384521,0.38458187,4697.5,4697.4,1.35373]
[1759792384928,0.38458187,4697.5,4697.4,0.9707]
[1759792384929,1.12868187,4697.5,4697.4,0.9707]
[1759792386027,1.12716,4697.1,4697.0,0.5361]
[1759792386228,1.12716,4697.1,4697.0,1.13217]
[1759792386526,1.12716,4697.1,4697.0,1.48527]
[1759792387421,0.38306,4697.1,4697.0,1.48527]
[1759792387616,0.00156187,4697.5,4697.2,1.14075]
[1759792387823,0.38304,4697.4,4697.3,0.7577]
[1759792388026,0.58614,4697.4,4697.3,0.7577]
[1759792388225,0.91054,4697.4,4697.3,0.7577]
[1759792388424,1.12714,4697.4,4697.3,0.7577]
[1759792388928,1.12714,4697.4,4697.3,0.9707]
[1759792390026,1.12714,4697.4,4697.3,1.35374]
[1759792390331,0.80274,4697.4,4697.3,0.9707]
[1759792390522,1.12714,4697.4,4697.3,0.9707]
[1759792398735,1.12714,4697.4,4697.3,1.35374]
[1759792399032,1.12714,4697.4,4697.3,0.9707]
[1759792399228,1.12714,4697.4,4697.3,0.213]
[1759792399429,0.7365,4697.0,4696.9,0.5487]
[1759792399625,0.7365,4697.0,4696.9,0.7617]
[1759792399832,1.11957,4697.0,4696.9,0.7617]
[1759792400329,1.11957,4697.0,4696.9,0.9627]
[1759792401130,1.24417,4697.0,4696.9,0.7617]
[1759792401435,0.95759,4697.4,4697.3,0.7497]
[1759792401436,0.7365,4697.4,4697.3,0.7497]
[1759792402031,1.11953,4697.4,4697.3,0.7497]
[1759792402226,0.4254,4697.1,4697.0,0.2191]
[1759792402438,0.7365,4697.1,4697.0,0.5487]
[1759792403236,1.11956,4697.1,4697.0,0.5487]
[1759792404529,1.11956,4697.1,4697.0,1.25407]
[1759792404729,0.59306,4697.1,4697.0,1.25407]
[1759792405130,0.38305,4697.3,4697.0,1.25407]
[1759792405331,0.3111,4697.4,4697.0,1.25407]
[1759792405537,0.7365,4697.4,4697.3,0.4201]
[1759792405836,1.11953,4697.4,4697.3,0.9627]
[1759792407138,1.11953,4697.4,4697.3,0.4321]
[1759792407339,0.3111,4697.3,4696.8,1.52739093]
[1759792407535,0.3111,4697.3,4696.6,0.3296]
[1759792407536,1.11958,4696.8,4696.6,0.3296]
[1759792407839,0.5931,4696.6,4696.5,0.5414]
[1759792408137,0.9042,4696.6,4696.5,0.871]
[1759792408535,0.9042,4696.6,4696.5,1.084]
[1759792409035,1.1196,4696.6,4696.5,1.084]
[1759792409939,0.7365,4696.6,4696.5,1.084]
[1759792410539,0.38311,4696.5,4696.4,0.3296]
[1759792410728,1.11961,4696.5,4696.4,0.7617]
[1759792412046,1.11961,4696.5,4696.4,0.9627]
[1759792412536,0.7365,4696.5,4696.4,1.34581]
[1759792412738,1.11961,4696.5,4696.4,1.34581]
[1759792412937,1.11961,4696.5,4696.4,0.9627]
[1759792414637,0.38308,4696.8,4696.6,0.8032]
[1759792414835,0.38308,4696.8,4696.7,0.7497]
[1759792415035,0.59308,4696.8,4696.7,0.7497]
[1759792415236,0.90418,4696.8,4696.7,0.7497]
[1759792415542,0.90418,4696.8,4696.7,1.13279]
[1759792415741,1.11958,4696.8,4696.7,0.7497]
[1759792416542,0.33,4696.5,4696.1,0.99449093]
[1759792416736,0.3116,4696.4,4696.3,0.38312]
[1759792416931,0.7294,4696.4,4696.3,0.38312]
[1759792420634,1.11251,4696.4,4696.3,0.38312]
[1759792421147,0.7294,4696.4,4696.3,0.38312]
[1759792422341,0.7294,4696.3,4696.2,0.59613]
[1759792423941,1.11252,4696.3,4696.2,0.213]
[1759792424544,0.7294,4696.1,4696.0,0.38314]
[1759792424741,0.7294,4696.1,4696.0,0.59614]
[1759792425951,0.1237,4696.5,4696.4,0.58861]
[1759792426145,0.2063,4697.0,4696.9,1.11497]
[1759792426452,0.2063,4697.0,4696.9,1.32797]
[1759792427047,0.2063,4697.0,4696.9,0.9449]
[1759792427252,0.5415,4697.0,4696.9,0.6251]
[1759792427947,0.8531,4697.0,4696.9,0.6251]
[1759792428155,0.8531,4697.0,4696.9,0.4121]
[1759792428453,0.8531,4697.0,4696.9,0.4185]
[1759792429245,0.8531,4697.0,4696.9,0.9464]
[1759792429646,0.65816187,4697.5,4697.4,0.41]
[1759792429850,0.8778,4697.0,4696.9,0.2019]
[1759792430052,0.79889,4696.7,4696.5,1.52937585]
[1759792430248,0.7453,4696.4,4696.2,1.52937585]
[1759792430455,1.12842,4696.4,4696.3,0.213]
[1759792430752,1.12842,4696.4,4696.3,0.4149]
[1759792432451,1.12842,4696.4,4696.3,0.213]
[1759792432653,0.79894,4696.1,4696.0,1.52937585]
[1759792432848,1.12844,4696.1,4696.0,0.213]
[1759792433044,1.12844,4696.1,4696.0,0.4149]
[1759792433656,1.12844,4696.1,4696.0,0.213]
[1759792434152,1.12847,4695.7,4695.6,1.52937585]
[1759792434358,0.7453,4695.6,4695.5,1.52937585]
[1759792434552,0.7453,4695.1,4695.0,0.00173412]
[1759792434745,0.7453,4695.1,4695.0,0.21473412]
[1759792435547,0.1325,4695.5,4695.0,0.53453412]
[1759792435751,0.5483,4695.5,4695.4,0.41]
[1759792436055,0.5483,4695.5,4695.4,0.623]
[1759792436253,0.8778,4695.5,4695.4,0.623]
[1759792437556,0.8778,4695.5,4695.4,0.4149]
[1759792440451,0.8778,4695.5,4695.4,0.623]
[1759792441053,0.8778,4695.5,4695.4,0.9428]
[1759792441657,0.6645,4695.5,4695.4,0.9428]
[1759792441856,0.3295,4695.5,4695.4,0.9428]
[1759792443047,1.26095,4696.0,4695.9,0.41]
[1759792443252,1.26095,4696.0,4695.9,0.4149]
[1759792443459,0.532,4695.1,4695.0,2.26090997]
[1759792443660,0.7453,4695.1,4695.0,2.53733997]
[1759792443857,0.3295,4695.1,4695.0,2.85713997]
[1759792444657,0.532,4695.1,4695.0,2.85713997]
[1759792445860,0.7453,4695.1,4695.0,1.00796412]
[1759792446761,0.7453,4695.1,4695.0,0.79496412]
[1759792447060,0.7453,4695.1,4695.0,1.00796412]
[1759792447563,0.7453,4695.1,4695.0,1.32776412]
[1759792449261,0.532,4695.1,4695.0,1.32776412]
[1759792450257,0.335,4695.5,4695.4,0.3832]
[1759792450461,0.335,4695.5,4695.4,1.326]
[1759792450760,0.7453,4695.8,4695.7,0.79317]
[1759792454258,0.5483,4695.5,4695.4,0.213]
[1759792454462,0.8778,4695.5,4695.4,0.213]
[1759792454862,1.26099,4695.5,4695.3,0.3832]
[1759792455265,1.12852,4695.1,4695.0,0.00173412]
[1759792455960,0.51577,4694.5,4694.4,0.213]
[1759792456265,0.51577,4694.5,4693.1,0.41]
[1759792456266,0.7453,4693.2,4693.1,0.41]
[1759792456559,0.7453,4693.2,4693.1,0.623]
[1759792457063,0.74717597,4693.2,4693.1,0.62574185]
[1759792457668,0.74717597,4693.2,4693.1,0.94724185]
[1759792459267,0.53387597,4693.2,4693.1,0.94164185]
[1759792460162,0.00187597,4693.2,4693.1,0.94164185]
[1759792461567,0.32247597,4693.2,4693.1,0.94164185]
[1759792461767,0.52507597,4693.2,4693.1,0.94164185]
[1759792465269,0.52507597,4693.2,4693.1,0.72864185]
[1759792465470,0.74307597,4693.2,4693.1,0.20464185]
[1759792465983,0.74307597,4693.2,4693.1,0.41764185]
[1759792467883,0.74307597,4693.2,4693.1,0.21574185]
[1759792471384,0.74307597,4693.2,4693.1,0.59912185]
[1759792472089,0.74307597,4693.2,4693.1,1.02682185]
[1759792472291,0.00187597,4693.2,4693.1,1.33602185]
[1759792472485,0.00187597,4693.2,4693.1,0.64344185]
[1759792472486,0.74307597,4693.2,4693.1,0.64344185]
[1759792472685,0.74307597,4693.2,4693.1,0.59912185]
[1759792472884,0.74307597,4693.2,4693.1,0.21574185]
[1759792473086,1.12645597,4693.2,4693.1,0.00274185]
[1759792473287,0.8653,4692.0,4691.9,0.59638]
[1759792473594,0.8653,4692.0,4691.9,0.4727]
[1759792474291,0.8653,4692.0,4691.9,0.42856433]
[1759792474593,0.8653,4692.0,4691.9,0.21566433]
[1759792476492,0.8653,4692.0,4691.9,0.42856433]
[1759792477988,0.8653,4692.0,4691.9,0.64286433]
[1759792479197,0.8653,4692.0,4691.9,0.42856433]
[1759792480298,0.8653,4692.0,4691.9,0.21566433]
[1759792480795,0.8653,4692.0,4691.9,0.42256433]
[1759792483799,0.8653,4692.0,4691.9,0.63686433]
[1759792483994,0.6388,4692.5,4692.4,0.4212]
[1759792484190,0.6388,4692.5,4692.4,1.32764]
[1759792484394,0.8555,4692.5,4692.4,1.01764]
[1759792487993,0.8555,4692.5,4692.4,0.6342]
[1759792488197,1.23893,4692.5,4692.4,0.6342]
[1759792488701,1.23893,4692.5,4692.4,0.4199]
[1759792489002,0.8555,4692.5,4692.4,0.80334]
[1759792489698,0.8555,4692.5,4692.4,0.81394]
[1759792491300,1.23893,4692.5,4692.4,0.213]
[1759792492305,1.23893,4692.5,4692.4,0.59644]
[1759792493507,1.23893,4692.5,4692.4,0.213]
[1759792493900,1.23893,4692.5,4692.4,0.59644]
[1759792494100,0.8555,4692.5,4692.4,0.81394]
[1759792495008,0.8555,4692.5,4692.4,0.59644]
[1759792495808,1.23893,4692.5,4692.4,0.213]
[1759792496006,1.23893,4692.5,4692.4,0.4305]
[1759792496209,1.23893,4692.5,4692.4,0.81394]
[1759792496405,0.8555,4692.5,4692.4,0.81394]
[1759792496606,0.8555,4692.5,4692.4,1.02624]
[1759792496909,1.23893,4692.5,4692.4,1.02624]
[1759792497205,0.8555,4692.5,4692.4,1.02624]
[1759792497406,0.5147,4692.5,4692.4,1.34784]
[1759792497607,0.32087597,4693.2,4693.1,0.4298]
[1759792497805,0.00187597,4693.2,4693.1,0.9644]
[1759792500300,0.52127597,4693.2,4693.1,0.9644]
[1759792501101,0.72937597,4693.2,4693.1,0.6428]